fUST/lending_fUST_20251004
["ID","MTS","AMOUNT","RATE_DAILY","PERIOD"]
[389157670,1759593053486,-500.0,0.00020273,2]
[389157671,1759593053496,-500.0,0.00020273,2]
[389157672,1759593053506,-592.33,0.00020273,2]
[389157673,1759593053516,-612.18,0.00020273,2]
[389157674,1759593053525,-500.0,0.00020273,2]
[389157675,1759593053535,-500.0,0.00020273,2]
[389157676,1759593053544,-500.0,0.00020273,2]
[389157677,1759593053554,-597.37,0.00020273,2]
[389157678,1759593053563,-500.0,0.00020273,2]
[389157679,1759593053572,-1880.73,0.00020273,2]
[389157680,1759593053581,-561.95,0.00020273,2]
[389157681,1759593053590,-1220.52,0.00020273,2]
[389157682,1759593053600,-500.0,0.00020273,2]
[389157683,1759593053609,-500.0,0.00020273,2]
[389157684,1759593053619,-946.68,0.00020273,2]
[389157685,1759593053628,-500.0,0.00020273,2]
[389157686,1759593053638,-500.0,0.00020273,2]
[389157687,1759593053648,-883.67,0.00020273,2]
[389157688,1759593053658,-500.0,0.00020273,2]
[389157689,1759593053667,-151.0,0.00020273,2]
[389157690,1759593053677,-151.0,0.00020273,2]
[389157691,1759593053687,-151.0,0.00020273,2]
[389157692,1759593053699,-500.0,0.00020273,2]
[389157693,1759593053708,-500.0,0.00020273,2]
[389157694,1759593053718,-500.0,0.00020273,2]
[389157695,1759593053727,-695.58,0.00020273,2]
[389157696,1759593053737,-151.0,0.00020273,2]
[389157697,1759593053746,-500.0,0.00020273,2]
[389157698,1759593053755,-151.0,0.00020273,2]
[389157699,1759593053765,-500.0,0.00020273,2]
[389157700,1759593053775,-500.0,0.00020273,2]
[389157701,1759593053784,-500.0,0.00020273,2]
[389157702,1759593053794,-500.0,0.00020273,2]
[389157703,1759593053803,-151.0,0.00020273,2]
[389157704,1759593053813,-500.0,0.00020273,2]
[389157705,1759593053822,-811.13,0.00020273,2]
[389157706,1759593053831,-1711.96,0.00020273,2]
[389157707,1759593053840,-704.65,0.00020273,2]
[389157708,1759593053849,-767.26,0.00020273,2]
[389157709,1759593053859,-500.0,0.00020273,2]
[389157710,1759593053868,-500.0,0.00020273,2]
[389157711,1759593053878,-500.0,0.00020273,2]
[389157712,1759593053887,-500.0,0.00020273,2]
[389157713,1759593053897,-500.0,0.00020273,2]
[389157714,1759593053906,-924.94,0.00020273,2]
[389157715,1759593053916,-500.0,0.00020273,2]
[389157716,1759593053925,-500.0,0.00020273,2]
[389157717,1759593053934,-159.59902133,0.00020273,2]
[389157718,1759593053943,-500.0,0.00020273,2]
[389157719,1759593053953,-500.0,0.00020273,2]
[389157720,1759593053962,-500.0,0.00020273,2]
[389157721,1759593053972,-500.0,0.00020273,2]
[389157722,1759593053981,-823.2,0.00020273,2]
[389157723,1759593053991,-500.0,0.00020273,2]
[389157724,1759593054000,-985.96,0.00020273,2]
[389157725,1759593054009,-500.0,0.00020273,2]
[389157726,1759593054019,-627.27,0.00020273,2]
[389157727,1759593054028,-151.0,0.00020273,2]
[389157728,1759593054037,-151.0,0.00020273,2]
[389157729,1759593054047,-500.0,0.00020273,2]
[389157730,1759593054056,-160.890888,0.00020273,2]
[389157731,1759593054066,-151.0,0.00020273,2]
[389157732,1759593054076,-500.0,0.00020273,2]
[389157733,1759593054086,-151.0,0.00020273,2]
[389157734,1759593054095,-500.0,0.00020273,2]
[389157735,1759593054104,-532.82,0.00020273,2]
[389157736,1759593054115,-500.0,0.00020273,2]
[389157737,1759593054125,-151.0,0.00020273,2]
[389157738,1759593054134,-151.0,0.00020273,2]
[389157739,1759593054144,-1949.45,0.00020273,2]
[389157740,1759593054154,-500.0,0.00020273,2]
[389157741,1759593054164,-3303.91,0.00020273,2]
[389157742,1759593054174,-500.0,0.00020273,2]
[389157743,1759593054184,-151.0,0.00020273,2]
[389157744,1759593054194,-500.0,0.00020273,2]
[389157745,1759593054204,-566.96,0.00020273,2]
[389157746,1759593054214,-151.0,0.00020273,2]
[389157747,1759593054224,-500.0,0.00020273,2]
[389157748,1759593054235,-151.0,0.00020273,2]
[389157749,1759593054245,-151.0,0.00020273,2]
[389157750,1759593054255,-151.0,0.00020273,2]
[389157751,1759593054264,-151.0,0.00020273,2]
[389157752,1759593054274,-151.0,0.00020273,2]
[389157753,1759593054285,-151.0,0.00020273,2]
[389157754,1759593054295,-151.0,0.00020273,2]
[389157755,1759593054305,-500.0,0.00020273,2]
[389157756,1759593054315,-500.0,0.00020273,2]
[389157757,1759593054325,-1119.98,0.00020273,2]
[389157758,1759593054335,-500.0,0.00020273,2]
[389157759,1759593054345,-151.0,0.00020273,2]
[389157760,1759593054355,-500.0,0.00020273,2]
[389157761,1759593054365,-500.0,0.00020273,2]
[389157762,1759593054375,-151.0,0.00020273,2]
[389157763,1759593054385,-500.0,0.00020273,2]
[389157764,1759593054397,-500.0,0.00020273,2]
[389157765,1759593054409,-151.0,0.00020273,2]
[389157766,1759593054418,-151.0,0.00020273,2]
[389157767,1759593054428,-500.0,0.00020273,2]
[389157768,1759593054439,-500.0,0.00020273,2]
[389157769,1759593054449,-500.0,0.00020273,2]
[389157770,1759593054458,-500.0,0.00020273,2]
[389157771,1759593054469,-545.28,0.00020273,2]
[389157772,1759593054481,-1261.68,0.00020273,2]
[389157773,1759593054490,-500.0,0.00020273,2]
[389157774,1759593054500,-500.0,0.00020273,2]
[389157775,1759593054510,-3676.63,0.00020273,2]
[389157776,1759593054519,-637.38,0.00020273,2]
[389157777,1759593054529,-568.41,0.00020273,2]
[389157778,1759593054539,-500.0,0.00020273,2]
[389157779,1759593054548,-500.0,0.00020273,2]
[389157780,1759593054557,-500.0,0.00020273,2]
[389157781,1759593054567,-500.0,0.00020273,2]
[389157782,1759593054577,-500.0,0.00020273,2]
[389157783,1759593054586,-548.38,0.00020273,2]
[389157784,1759593054595,-3208.65,0.00020273,2]
[389157785,1759593054604,-685.52,0.00020273,2]
[389157786,1759593054614,-500.0,0.00020273,2]
[389157787,1759593054624,-1279.41,0.00020273,2]
[389157788,1759593054634,-643.26,0.00020273,2]
[389157789,1759593054643,-500.0,0.00020273,2]
[389157790,1759593054652,-500.0,0.00020273,2]
[389157791,1759593054662,-5094.83,0.00020273,2]
[389157792,1759593054672,-1655.05,0.00020273,2]
[389157793,1759593054682,-1432.98,0.00020273,2]
[389157794,1759593054691,-967.26,0.00020273,2]
[389157795,1759593054700,-500.0,0.00020273,2]
[389157796,1759593054710,-500.0,0.00020273,2]
[389157797,1759593054720,-151.0,0.00020273,2]
[389157798,1759593054730,-4031.17,0.00020273,2]
[389157799,1759593054740,-4495.31,0.00020273,2]
[389157800,1759593054750,-5060.59,0.00020273,2]
[389157801,1759593054759,-500.0,0.00020273,2]
[389157802,1759593054769,-246.75755614,0.00020273,2]
[389157803,1759593054778,-151.0,0.00020273,2]
[389157804,1759593054788,-151.0,0.00020273,2]
[389157805,1759593054797,-151.0,0.00020273,2]
[389157806,1759593054807,-151.0,0.00020273,2]
[389157807,1759593054817,-4043.69,0.00020273,2]
[389157808,1759593054826,-151.0,0.00020273,2]
[389157809,1759593054836,-168.241434,0.00020273,2]
[389157810,1759593054846,-500.0,0.00020273,2]
[389157811,1759593054855,-168.241434,0.00020273,2]
[389157812,1759593054865,-168.241434,0.00020273,2]
[389157813,1759593054876,-151.0,0.00020273,2]
[389157814,1759593054887,-151.0,0.00020273,2]
[389157815,1759593054896,-168.241434,0.00020273,2]
[389157816,1759593054907,-365.846877,0.00020273,2]
[389157817,1759593054917,-500.0,0.00020273,2]
[389157818,1759593054927,-151.0,0.00020273,2]
[389157819,1759593054937,-500.0,0.00020273,2]
[389157820,1759593054947,-365.846877,0.00020273,2]
[389157821,1759593054957,-500.0,0.00020273,2]
[389157822,1759593054968,-365.846877,0.00020273,2]
[389157823,1759593054978,-1469.96,0.00020273,2]
[389157824,1759593054988,-365.846877,0.00020273,2]
[389157825,1759593054998,-500.0,0.00020273,2]
[389157826,1759593055009,-632.58,0.00020273,2]
[389157827,1759593055019,-500.0,0.00020273,2]
[389157828,1759593055029,-1264.74,0.00020273,2]
[389157829,1759593055039,-500.0,0.00020273,2]
[389157830,1759593055049,-500.0,0.00020273,2]
[389157831,1759593055059,-834.51,0.00020273,2]
[389157832,1759593055069,-1639.5,0.00020273,2]
[389157833,1759593055079,-151.0,0.00020273,2]
[389157834,1759593055089,-151.0,0.00020273,2]
[389157835,1759593055098,-509.86,0.00020273,2]
[389157836,1759593055108,-151.0,0.00020273,2]
[389157837,1759593055119,-500.0,0.00020273,2]
[389157838,1759593055128,-500.0,0.00020273,2]
[389157839,1759593055138,-171.66612,0.00020273,2]
[389157840,1759593055148,-573.11,0.00020273,2]
[389157841,1759593055157,-4288.81,0.00020273,2]
[389157842,1759593055168,-500.0,0.00020273,2]
[389157843,1759593055178,-2260.03,0.00020273,2]
[389157844,1759593055189,-614.86,0.00020273,2]
[389157845,1759593055198,-572.78,0.00020273,2]
[389157846,1759593055208,-151.0,0.00020273,2]
[389157847,1759593055217,-151.0,0.00020273,2]
[389157848,1759593055228,-151.0,0.00020273,2]
[389157849,1759593055237,-982.23,0.00020273,2]
[389157850,1759593055247,-500.0,0.00020273,2]
[389157851,1759593055257,-861.39,0.00020273,2]
[389157852,1759593055267,-500.0,0.00020273,2]
[389157853,1759593055277,-711.3,0.00020273,2]
[389157854,1759593055287,-745.87,0.00020273,2]
[389157855,1759593055297,-1169.22,0.00020273,2]
[389157856,1759593055306,-151.0,0.00020273,2]
[389157857,1759593055315,-769.58,0.00020273,2]
[389157858,1759593055325,-500.0,0.00020273,2]
[389157859,1759593055335,-1039.1,0.00020273,2]
[389157860,1759593055344,-586.44,0.00020273,2]
[389157861,1759593055354,-500.0,0.00020273,2]
[389157862,1759593055363,-151.0,0.00020273,2]
[389157863,1759593055373,-5376.96,0.00020273,2]
[389157864,1759593055383,-151.0,0.00020273,2]
[389157865,1759593055395,-500.0,0.00020273,2]
[389157866,1759593055407,-151.0,0.00020273,2]
[389157867,1759593055416,-2325.11,0.00020273,2]
[389157868,1759593055426,-500.0,0.00020273,2]
[389157869,1759593055436,-1184.17,0.00020273,2]
[389157870,1759593055445,-270.547098,0.00020273,2]
[389157871,1759593055454,-500.0,0.00020273,2]
[389157872,1759593055464,-1219.116387,0.00020273,2]
[389157873,1759593055473,-500.0,0.00020273,2]
[389157874,1759593055483,-151.0,0.00020273,2]
[389157875,1759593055492,-2810.27,0.00020273,2]
[389157876,1759593055502,-500.0,0.00020273,2]
[389157877,1759593055511,-1219.116387,0.00020273,2]
[389157878,1759593055521,-151.0,0.00020273,2]
[389157879,1759593055530,-270.547098,0.00020273,2]
[389157880,1759593055539,-1219.116387,0.00020273,2]
[389157881,1759593055549,-500.0,0.00020273,2]
[389157882,1759593055558,-1219.116387,0.00020273,2]
[389157883,1759593055568,-500.0,0.00020273,2]
[389157884,1759593055578,-270.547098,0.00020273,2]
[389157885,1759593055588,-151.0,0.00020273,2]
[389157886,1759593055597,-570.71,0.00020273,2]
[389157887,1759593055607,-628.79,0.00020273,2]
[389157888,1759593055616,-270.547098,0.00020273,2]
[389157889,1759593055625,-761.94,0.00020273,2]
[389157890,1759593055635,-764.12,0.00020273,2]
[389157891,1759593055645,-1631.41,0.00020273,2]
[389157892,1759593055654,-500.0,0.00020273,2]
[389157893,1759593055664,-1495.3,0.00020273,2]
[389157894,1759593055673,-2092.97,0.00020273,2]
[389157895,1759593055683,-1174.21,0.00020273,2]
[389157896,1759593055692,-500.0,0.00020273,2]
[389157897,1759593055702,-151.0,0.00020273,2]
[389157898,1759593055712,-154.218393,0.00020273,2]
[389157899,1759593055721,-663.28,0.00020273,2]
[389157900,1759593055731,-1969.15,0.00020273,2]
[389157901,1759593055741,-1062.03,0.00020273,2]
[389157902,1759593055750,-680.83,0.00020273,2]
[389157903,1759593055760,-596.45,0.00020273,2]
[389157904,1759593055770,-2706.53,0.00020273,2]
[389157905,1759593055780,-5236.69,0.00020273,2]
[389157906,1759593055791,-500.0,0.00020273,2]
[389157907,1759593055800,-722.39,0.00020273,2]
[389157908,1759593055811,-676.08,0.00020273,2]
[389157909,1759593055820,-500.0,0.00020273,2]
[389157910,1759593055830,-622.6,0.00020273,2]
[389157911,1759593055839,-770.23,0.00020273,2]
[389157912,1759593055849,-596.04,0.00020273,2]
[389157913,1759593055858,-500.0,0.00020273,2]
[389157914,1759593055868,-1625.7,0.00020273,2]
[389157915,1759593055878,-1512.93,0.00020273,2]
[389157916,1759593055888,-5806.93,0.00020273,2]
[389157917,1759593055898,-667.12,0.00020273,2]
[389157918,1759593055909,-500.0,0.00020273,2]
[389157919,1759593055919,-1495.05,0.00020273,2]
[389157920,1759593055929,-500.0,0.00020273,2]
[389157921,1759593055938,-500.0,0.00020273,2]
[389157922,1759593055948,-500.0,0.00020273,2]
[389157923,1759593055958,-1031.66,0.00020273,2]
[389157924,1759593055968,-500.0,0.00020273,2]
[389157925,1759593055978,-500.0,0.00020273,2]
[389157926,1759593055987,-4277.11,0.00020273,2]
[389157927,1759593055997,-1104.08,0.00020273,2]
[389157928,1759593056007,-500.0,0.00020273,2]
[389157929,1759593056017,-2219.31,0.00020273,2]
[389157930,1759593056027,-959.24,0.00020273,2]
[389157931,1759593056037,-942.05,0.00020273,2]
[389157932,1759593056047,-500.0,0.00020273,2]
[389157933,1759593056057,-500.0,0.00020273,2]
[389157934,1759593056067,-645.52,0.00020273,2]
[389157935,1759593056077,-4584.92,0.00020273,2]
[389157936,1759593056087,-500.0,0.00020273,2]
[389157937,1759593056097,-3358.07,0.00020273,2]
[389157938,1759593056107,-500.0,0.00020273,2]
[389157939,1759593056116,-2066.69,0.00020273,2]
[389157940,1759593056126,-500.0,0.00020274,2]
[389157941,1759593056136,-160.0,0.00020281,2]
[389157942,1759593056146,-1000.0,0.00020285,2]
[389157943,1759593056155,-1000.0,0.00020285,2]
[389157944,1759593056166,-1000.0,0.00020285,2]
[389157945,1759593056176,-1000.0,0.00020285,2]
[389157946,1759593056186,-1000.0,0.00020285,2]
[389157947,1759593056372,-1013.40537841,0.00020285,2]
[389157948,1759593056386,-1000.0,0.00020285,2]
[389157949,1759593056398,-1000.0,0.00020285,2]
[389157950,1759593056408,-151.0,0.000203,4]
[389157951,1759593056418,-1000.0,0.00020356,2]
[389157952,1759593056428,-503.39666412,0.00020356,2]
[389157953,1759593056438,-1000.0,0.00020356,2]
[389157954,1759593056448,-409.41316376,0.00020356,2]
[389157955,1759593056457,-1000.0,0.00020356,2]
[389157956,1759593056467,-1891.46360194,0.00020395,2]
[389157957,1759593056478,-166.0,0.000204,2]
[389157958,1759593056488,-500.0,0.00020429,2]
[389157959,1759593056497,-500.0,0.00020429,2]
[389157960,1759593056507,-500.0,0.00020429,2]
[389157961,1759593056517,-500.0,0.00020429,2]
[389157962,1759593056526,-500.0,0.00020429,2]
[389157963,1759593056535,-500.0,0.00020429,2]
[389157964,1759593056545,-168.0,0.00020442,2]
[389157965,1759593056554,-541.2890073,0.00020468,2]
[389157966,1759593056563,-151.0,0.000205,4]
[389157967,1759593056573,-1407.79756957,0.00020514,2]
[389157968,1759593056582,-500.0,0.00020547,2]
[389157969,1759593056592,-500.0,0.00020547,2]
[389157970,1759593056601,-500.0,0.00020547,2]
[389157971,1759593056611,-500.0,0.00020547,2]
[389157972,1759593056622,-500.0,0.00020547,2]
[389157973,1759593056631,-500.0,0.00020547,2]
[389157974,1759593056641,-500.0,0.00020547,2]
[389157975,1759593056651,-500.0,0.00020547,2]
[389157976,1759593056660,-500.0,0.00020547,2]
[389157977,1759593056670,-500.0,0.00020547,2]
[389157978,1759593056679,-749.21,0.00020547,2]
[389157979,1759593056689,-553.43,0.00020547,2]
[389157980,1759593056698,-500.0,0.00020547,2]
[389157981,1759593056708,-500.0,0.00020547,2]
[389157982,1759593056717,-500.0,0.00020547,2]
[389157983,1759593056727,-500.0,0.00020547,2]
[389157984,1759593056736,-500.0,0.00020547,2]
[389157985,1759593056746,-500.0,0.00020547,2]
[389157986,1759593056755,-500.0,0.00020547,2]
[389157987,1759593056765,-500.0,0.00020547,2]
[389157988,1759593056775,-500.0,0.00020547,2]
[389157989,1759593056785,-500.0,0.00020547,2]
[389157990,1759593056794,-500.0,0.00020547,2]
[389157991,1759593056805,-500.0,0.00020547,2]
[389157992,1759593056814,-592.33,0.00020547,2]
[389157993,1759593056825,-612.18,0.00020547,2]
[389157994,1759593056834,-500.0,0.00020547,2]
[389157995,1759593056843,-500.0,0.00020547,2]
[389157996,1759593056852,-151.0,0.00020547,2]
[389157997,1759593056862,-500.0,0.00020547,2]
[389157998,1759593056871,-151.0,0.00020547,2]
[389157999,1759593056882,-151.0,0.00020547,2]
[389158000,1759593056891,-597.37,0.00020547,2]
[389158001,1759593056900,-151.0,0.00020547,2]
[389158002,1759593056910,-297.547364,0.00020547,2]
[389158003,1759593056919,-610.47001957,0.00020547,2]
[389158004,1759593056928,-1880.73,0.00020547,2]
[389158005,1759593056938,-561.95,0.00020547,2]
[389158006,1759593056947,-1220.52,0.00020547,2]
[389158007,1759593056957,-151.0,0.00020547,2]
[389158008,1759593056966,-593.99779958,0.00020547,2]
[389158009,1759593056976,-946.68,0.00020547,2]
[389158010,1759593056985,-500.0,0.00020547,2]
[389158011,1759593056994,-500.0,0.00020547,2]
[389158012,1759593057004,-883.67,0.00020547,2]
[389158013,1759593057014,-500.0,0.00020547,2]
[389158014,1759593057023,-500.0,0.00020547,2]
[389158015,1759593057032,-500.0,0.00020547,2]
[389158016,1759593057041,-500.0,0.00020547,2]
[389158017,1759593057051,-695.58,0.00020547,2]
[389158018,1759593057060,-500.0,0.00020547,2]
[389158019,1759593057070,-500.0,0.00020547,2]
[389158020,1759593057080,-500.0,0.00020547,2]
[389158021,1759593057090,-500.0,0.00020547,2]
[389158022,1759593057102,-500.0,0.00020547,2]
[389158023,1759593057112,-811.13,0.00020547,2]
[389158024,1759593057121,-1711.96,0.00020547,2]
[389158025,1759593057130,-704.65,0.00020547,2]
[389158026,1759593057140,-767.26,0.00020547,2]
[389158027,1759593057149,-500.0,0.00020547,2]
[389158028,1759593057159,-500.0,0.00020547,2]
[389158029,1759593057170,-500.0,0.00020547,2]
[389158030,1759593057180,-500.0,0.00020547,2]
[389158031,1759593057189,-500.0,0.00020547,2]
[389158032,1759593057200,-924.94,0.00020547,2]
[389158033,1759593057210,-500.0,0.00020547,2]
[389158034,1759593057219,-500.0,0.00020547,2]
[389158035,1759593057228,-500.0,0.00020547,2]
[389158036,1759593057237,-500.0,0.00020547,2]
[389158037,1759593057247,-500.0,0.00020547,2]
[389158038,1759593057258,-823.2,0.00020547,2]
[389158039,1759593057267,-500.0,0.00020547,2]
[389158040,1759593057277,-985.96,0.00020547,2]
[389158041,1759593057286,-500.0,0.00020547,2]
[389158042,1759593057296,-627.27,0.00020547,2]
[389158043,1759593057305,-500.0,0.00020547,2]
[389158044,1759593057314,-500.0,0.00020547,2]
[389158045,1759593057323,-500.0,0.00020547,2]
[389158046,1759593057333,-532.82,0.00020547,2]
[389158047,1759593057342,-500.0,0.00020547,2]
[389158048,1759593057352,-1949.45,0.00020547,2]
[389158049,1759593057361,-500.0,0.00020547,2]
[389158050,1759593057372,-3303.91,0.00020547,2]
[389158051,1759593057382,-500.0,0.00020547,2]
[389158052,1759593057392,-500.0,0.00020547,2]
[389158053,1759593057406,-566.96,0.00020547,2]
[389158054,1759593057416,-500.0,0.00020547,2]
[389158055,1759593057425,-500.0,0.00020547,2]
[389158056,1759593057434,-500.0,0.00020547,2]
[389158057,1759593057444,-1119.98,0.00020547,2]
[389158058,1759593057453,-500.0,0.00020547,2]
[389158059,1759593057463,-500.0,0.00020547,2]
[389158060,1759593057472,-500.0,0.00020547,2]
[389158061,1759593057481,-500.0,0.00020547,2]
[389158062,1759593057490,-500.0,0.00020547,2]
[389158063,1759593057500,-500.0,0.00020547,2]
[389158064,1759593057511,-500.0,0.00020547,2]
[389158065,1759593057520,-545.28,0.00020547,2]
[389158066,1759593057530,-1261.68,0.00020547,2]
[389158067,1759593057539,-500.0,0.00020547,2]
[389158068,1759593057549,-500.0,0.00020547,2]
[389158069,1759593057559,-3676.63,0.00020547,2]
[389158070,1759593057568,-637.38,0.00020547,2]
[389158071,1759593057577,-568.41,0.00020547,2]
[389158072,1759593057586,-500.0,0.00020547,2]
[389158073,1759593057595,-500.0,0.00020547,2]
[389158074,1759593057604,-500.0,0.00020547,2]
[389158075,1759593057614,-500.0,0.00020547,2]
[389158076,1759593057623,-500.0,0.00020547,2]
[389158077,1759593057632,-548.38,0.00020547,2]
[389158078,1759593057641,-3208.65,0.00020547,2]
[389158079,1759593057650,-685.52,0.00020547,2]
[389158080,1759593057660,-500.0,0.00020547,2]
[389158081,1759593057669,-1279.41,0.00020547,2]
[389158082,1759593057678,-643.26,0.00020547,2]
[389158083,1759593057687,-500.0,0.00020547,2]
[389158084,1759593057696,-500.0,0.00020547,2]
[389158085,1759593057705,-5094.83,0.00020547,2]
[389158086,1759593057714,-1655.05,0.00020547,2]
[389158087,1759593057723,-1432.98,0.00020547,2]
[389158088,1759593057732,-967.26,0.00020547,2]
[389158089,1759593057741,-500.0,0.00020547,2]
[389158090,1759593057750,-500.0,0.00020547,2]
[389158091,1759593057760,-4031.17,0.00020547,2]
[389158092,1759593057769,-4495.31,0.00020547,2]
[389158093,1759593057778,-5060.59,0.00020547,2]
[389158094,1759593057789,-500.0,0.00020547,2]
[389158095,1759593057798,-4043.69,0.00020547,2]
[389158096,1759593057807,-500.0,0.00020547,2]
[389158097,1759593057817,-500.0,0.00020547,2]
[389158098,1759593057827,-500.0,0.00020547,2]
[389158099,1759593057837,-1469.96,0.00020547,2]
[389158100,1759593057847,-500.0,0.00020547,2]
[389158101,1759593057856,-632.58,0.00020547,2]
[389158102,1759593057865,-500.0,0.00020547,2]
[389158103,1759593057875,-1264.74,0.00020547,2]
[389158104,1759593057884,-500.0,0.00020547,2]
[389158105,1759593057893,-500.0,0.00020547,2]
[389158106,1759593057903,-834.51,0.00020547,2]
[389158107,1759593057911,-1639.5,0.00020547,2]
[389158108,1759593057921,-509.86,0.00020547,2]
[389158109,1759593057930,-500.0,0.00020547,2]
[389158110,1759593057940,-500.0,0.00020547,2]
[389158111,1759593057949,-573.11,0.00020547,2]
[389158112,1759593057958,-4288.81,0.00020547,2]
[389158113,1759593057968,-500.0,0.00020547,2]
[389158114,1759593057978,-2260.03,0.00020547,2]
[389158115,1759593057988,-614.86,0.00020547,2]
[389158116,1759593057997,-572.78,0.00020547,2]
[389158117,1759593058006,-982.23,0.00020547,2]
[389158118,1759593058016,-500.0,0.00020547,2]
[389158119,1759593058025,-861.39,0.00020547,2]
[389158120,1759593058035,-500.0,0.00020547,2]
[389158121,1759593058045,-711.3,0.00020547,2]
[389158122,1759593058054,-745.87,0.00020547,2]
[389158123,1759593058064,-1169.22,0.00020547,2]
[389158124,1759593058074,-769.58,0.00020547,2]
[389158125,1759593058085,-500.0,0.00020547,2]
[389158126,1759593058095,-1039.1,0.00020547,2]
[389158127,1759593058104,-586.44,0.00020547,2]
[389158128,1759593058114,-500.0,0.00020547,2]
[389158129,1759593058124,-5376.96,0.00020547,2]
[389158130,1759593058133,-500.0,0.00020547,2]
[389158131,1759593058143,-2325.11,0.00020547,2]
[389158132,1759593058152,-500.0,0.00020547,2]
[389158133,1759593058161,-1184.17,0.00020547,2]
[389158134,1759593058171,-500.0,0.00020547,2]
[389158135,1759593058180,-500.0,0.00020547,2]
[389158136,1759593058189,-2810.27,0.00020547,2]
[389158137,1759593058199,-500.0,0.00020547,2]
[389158138,1759593058208,-500.0,0.00020547,2]
[389158139,1759593058218,-500.0,0.00020547,2]
[389158140,1759593058227,-570.71,0.00020547,2]
[389158141,1759593058236,-628.79,0.00020547,2]
[389158142,1759593058247,-761.94,0.00020547,2]
[389158143,1759593058256,-764.12,0.00020547,2]
[389158144,1759593058265,-1631.41,0.00020547,2]
[389158145,1759593058275,-169.13142331,0.00020547,2]
[389158146,1759593058284,-1495.3,0.00020547,2]
[389158147,1759593058294,-2092.97,0.00020547,2]
[389158148,1759593058309,-1174.21,0.00020547,2]
[389158149,1759593058331,-500.0,0.00020547,2]
[389158150,1759593058354,-663.28,0.00020547,2]
[389158151,1759593058375,-1969.15,0.00020547,2]
[389158152,1759593058399,-1062.03,0.00020547,2]
[389158153,1759593058419,-680.83,0.00020547,2]
[389158154,1759593058439,-596.45,0.00020547,2]
[389158155,1759593058460,-2706.53,0.00020547,2]
[389158156,1759593058481,-5236.69,0.00020547,2]
[389158157,1759593058504,-500.0,0.00020547,2]
[389158158,1759593058525,-722.39,0.00020547,2]
[389158159,1759593058548,-676.08,0.00020547,2]
[389158160,1759593058571,-500.0,0.00020547,2]
[389158161,1759593058593,-622.6,0.00020547,2]
[389158162,1759593058616,-770.23,0.00020547,2]
[389158163,1759593058638,-596.04,0.00020547,2]
[389158164,1759593058662,-500.0,0.00020547,2]
[389158165,1759593058684,-1625.7,0.00020547,2]
[389158166,1759593058705,-1512.93,0.00020547,2]
[389158167,1759593058715,-5806.93,0.00020547,2]
[389158168,1759593058725,-667.12,0.00020547,2]
[389158169,1759593058735,-500.0,0.00020547,2]